[Event "NJSK 2024 A"]
[Site "Groningen, Netherlands"]
[Date "2024.04.28"]
[Round "2.4"]
[White "Van de Poel, Jona"]
[Black "Snijders, Take"]
[Result "0-1"]
[TimeControl "90min/40moves + 30min + 30sec/move"]
[WhiteElo "1865"]
[BlackElo "2090"]

1. e4 {[%clk 01:30:57]} {[%emt 00:00:02]} c6 {[%clk 01:30:55]} {[%emt
00:00:06]} 2. d4 {[%clk 01:31:21]} {[%emt 00:00:05]} d5 {[%clk 01:31:22]}
{[%emt 00:00:03]} 3. Nc3 {[%clk 01:31:45]} {[%emt 00:00:06]} dxe4 {[%clk
01:31:48]} {[%emt 00:00:05]} 4. Nxe4 {[%clk 01:32:07]} {[%emt 00:00:06]} Nf6
{[%clk 01:32:15]} {[%emt 00:00:04]} 5. Nxf6+ {[%clk 01:32:28]} {[%emt
00:00:09]} exf6 {[%clk 01:32:42]} {[%emt 00:00:04]} 6. c3 {[%clk 01:32:51]}
{[%emt 00:00:07]} Bd6 {[%clk 01:33:02]} {[%emt 00:00:09]} 7. Bd3 {[%clk
01:33:13]} {[%emt 00:00:08]} O-O {[%clk 01:33:15]} {[%emt 00:00:18]} 8. Qc2
{[%clk 01:33:38]} {[%emt 00:00:04]} Re8+ {[%clk 01:33:35]} {[%emt 00:00:10]} 9.
Ne2 {[%clk 01:34:02]} {[%emt 00:00:05]} g6 {[%clk 01:33:45]} {[%emt 00:00:21]}
10. h4 {[%clk 01:34:27]} {[%emt 00:00:05]} Be6 {[%clk 01:33:09]} {[%emt
00:01:06]} 11. h5 {[%clk 01:34:46]} {[%emt 00:00:12]} f5 {[%clk 01:33:22]}
{[%emt 00:00:16]} 12. Be3 {[%clk 01:35:12]} {[%emt 00:00:04]} Nd7 {[%clk
01:27:01]} {[%emt 00:06:51]} 13. hxg6 {[%clk 01:30:57]} {[%emt 00:04:45]} fxg6
{[%clk 01:26:16]} {[%emt 00:01:15]} 14. O-O-O {[%clk 01:21:20]} {[%emt
00:10:08]} Qa5 {[%clk 01:21:05]} {[%emt 00:05:41]} 15. d5 {[%clk 01:02:13]}
{[%emt 00:19:36]} cxd5 {[%clk 01:00:09]} {[%emt 00:21:26]} 16. g4 {[%clk
00:40:43]} {[%emt 00:22:00]} Ne5 {[%clk 00:52:25]} {[%emt 00:08:14]} 17. gxf5
{[%clk 00:36:31]} {[%emt 00:04:41]} Nxd3+ {[%clk 00:51:54]} {[%emt 00:01:01]}
18. Qxd3 {[%clk 00:36:56]} {[%emt 00:00:06]} Bxf5 {[%clk 00:51:17]} {[%emt
00:01:08]} 19. Qd4 {[%clk 00:32:01]} {[%emt 00:05:24]} Be4 {[%clk 00:44:11]}
{[%emt 00:07:36]} 20. Rh3 {[%clk 00:28:41]} {[%emt 00:03:49]} Be5 {[%clk
00:33:03]} {[%emt 00:11:39]} 21. Qc5 {[%clk 00:26:52]} {[%emt 00:02:19]} Qxa2
{[%clk 00:31:17]} {[%emt 00:02:16]} 22. Qb5 {[%clk 00:25:39]} {[%emt 00:01:41]}
Re7 {[%clk 00:18:44]} {[%emt 00:13:06]} 23. Bd4 {[%clk 00:22:04]} {[%emt
00:04:04]} Qb1+ {[%clk 00:16:53]} {[%emt 00:02:21]} 24. Kd2 {[%clk 00:22:16]}
{[%emt 00:00:17]} Qc2+ {[%clk 00:16:57]} {[%emt 00:00:26]} 25. Ke1 {[%clk
00:22:30]} {[%emt 00:00:17]} Bxd4 {[%clk 00:15:35]} {[%emt 00:01:52]} 26. cxd4
{[%clk 00:21:10]} {[%emt 00:01:49]} Qc6 {[%clk 00:09:54]} {[%emt 00:06:12]} 27.
Qb4 {[%clk 00:20:35]} {[%emt 00:01:05]} Rae8 {[%clk 00:10:00]} {[%emt
00:00:24]} 28. Re3 {[%clk 00:20:34]} {[%emt 00:00:31]} Qf6 {[%clk 00:09:32]}
{[%emt 00:00:58]} 29. Qc3 {[%clk 00:19:08]} {[%emt 00:01:56]} h5 {[%clk
00:08:09]} {[%emt 00:01:52]} 30. Ng3 {[%clk 00:18:45]} {[%emt 00:00:54]} Bf3
{[%clk 00:08:04]} {[%emt 00:00:36]} 31. Rdd3 {[%clk 00:18:53]} {[%emt
00:00:21]} h4 {[%clk 00:08:05]} {[%emt 00:00:28]} 32. Nf1 {[%clk 00:15:34]}
{[%emt 00:03:50]} Qf4 {[%clk 00:06:57]} {[%emt 00:01:38]} 33. Rxe7 {[%clk
00:14:42]} {[%emt 00:01:22]} Rxe7+ {[%clk 00:07:21]} {[%emt 00:00:06]} 34. Re3
{[%clk 00:15:07]} {[%emt 00:00:04]} Rxe3+ {[%clk 00:06:32]} {[%emt 00:01:20]}
35. Nxe3 {[%clk 00:15:32]} {[%emt 00:00:05]} Kg7 {[%clk 00:05:26]} {[%emt
00:01:36]} 36. Qc8 {[%clk 00:14:30]} {[%emt 00:01:31]} Qxd4 {[%clk 00:04:40]}
{[%emt 00:01:16]} 37. Qxb7+ {[%clk 00:13:41]} {[%emt 00:01:20]} Kh6 {[%clk
00:04:52]} {[%emt 00:00:18]} 38. Qb8 {[%clk 00:13:05]} {[%emt 00:01:06]} a5
{[%clk 00:04:13]} {[%emt 00:01:09]} 39. Kf1 {[%clk 00:12:32]} {[%emt 00:01:03]}
Qd3+ {[%clk 00:03:22]} {[%emt 00:01:22]} 40. Kg1 {[%clk 00:12:57]} {[%emt
00:00:05]} Qb1+ {[%clk 00:03:13]} {[%emt 00:00:38]} 41. Nf1 {[%clk 00:12:24]}
{[%emt 00:01:03]} Qf5 {[%clk 00:24:07]} {[%emt 00:09:35]} 42. Qh8+ {[%clk
00:41:55]} {[%emt 00:00:59]} Kg5 {[%clk 00:24:33]} {[%emt 00:00:05]} 43. Nh2
{[%clk 00:40:54]} {[%emt 00:01:31]} Be4 {[%clk 00:20:42]} {[%emt 00:04:21]} 44.
Qd8+ {[%clk 00:38:26]} {[%emt 00:02:58]} Qf6 {[%clk 00:19:51]} {[%emt
00:01:20]} 45. Qxa5 {[%clk 00:29:58]} {[%emt 00:08:58]} Qxb2 {[%clk 00:20:03]}
{[%emt 00:00:18]} 46. Qc5 {[%clk 00:28:27]} {[%emt 00:02:01]} Qf6 {[%clk
00:18:03]} {[%emt 00:02:30]} 47. Qc8 {[%clk 00:26:39]} {[%emt 00:02:18]} Bf5
{[%clk 00:16:11]} {[%emt 00:02:23]} 48. Qc5 {[%clk 00:23:13]} {[%emt 00:03:55]}
Qa1+ {[%clk 00:11:12]} {[%emt 00:05:30]} 49. Nf1 {[%clk 00:23:27]} {[%emt
00:00:15]} Qe5 {[%clk 00:11:10]} {[%emt 00:00:33]} 50. Nh2 {[%clk 00:17:50]}
{[%emt 00:06:07]} Qe4 {[%clk 00:10:15]} {[%emt 00:01:24]} 51. Qc3 {[%clk
00:17:04]} {[%emt 00:01:14]} h3 {[%clk 00:09:18]} {[%emt 00:01:30]} 52. Qc1+
{[%clk 00:06:31]} {[%emt 00:11:03]} Kh5 {[%clk 00:08:19]} {[%emt 00:01:29]} 53.
Qd1+ {[%clk 00:06:30]} {[%emt 00:00:30]} Bg4 {[%clk 00:05:49]} {[%emt
00:03:00]} 54. f3 {[%clk 00:06:53]} {[%emt 00:00:07]} Qe3+ {[%clk 00:06:13]}
{[%emt 00:00:06]} 55. Kf1 {[%clk 00:06:06]} {[%emt 00:01:17]} Bf5 {[%clk
00:06:16]} {[%emt 00:00:27]} 56. Qxd5 {[%clk 00:05:43]} {[%emt 00:00:54]} Qc1+
{[%clk 00:05:04]} {[%emt 00:01:42]} 57. Ke2 {[%clk 00:05:41]} {[%emt 00:00:31]}
Qf4 {[%clk 00:04:09]} {[%emt 00:01:26]} 58. Ng4 {[%clk 00:03:08]} {[%emt
00:03:02]} h2 {[%clk 00:03:17]} {[%emt 00:01:22]} 59. Nf2 {[%clk 00:01:42]}
{[%emt 00:01:57]} Qg3 {[%clk 00:02:51]} {[%emt 00:00:56]} 60. Qd1 {[%clk
00:01:36]} {[%emt 00:00:36]} Qe5+ {[%clk 00:03:07]} {[%emt 00:00:13]} 61. Kf1
{[%emt 00:01:57]} Bh3+ {[%clk 00:02:59]} 62. Nxh3 {[%clk 00:01:11]} {[%emt
00:00:07]} h1=Q+ {[%clk 00:03:25]} {[%emt 00:00:05]} 63. Ng1 {[%clk 00:01:24]}
{[%emt 00:00:16]} Kh6 {[%clk 00:03:01]} {[%emt 00:00:54]} 0-1

[Event "NJSK 2024 A"]
[Site "Groningen, Netherlands"]
[Date "2024.04.28"]
[Round "2.5"]
[White "Klugstedt, Vincent"]
[Black "Smid, Jelle"]
[Result "0-1"]
[TimeControl "90min/40moves + 30min + 30sec/move"]
[WhiteElo "1913"]
[BlackElo "1917"]

1. d4 {[%clk 01:30:57]} {[%emt 00:00:02]} e6 {[%clk 01:30:50]} {[%emt
00:00:10]} 2. c4 {[%clk 01:30:17]} {[%emt 00:01:10]} f5 {[%clk 01:30:45]}
{[%emt 00:00:36]} 3. Nf3 {[%clk 01:27:24]} {[%emt 00:03:23]} Nf6 {[%clk
01:31:07]} {[%emt 00:00:07]} 4. Bf4 {[%clk 01:25:34]} {[%emt 00:02:20]} b6
{[%clk 01:29:26]} {[%emt 00:02:12]} 5. Nc3 {[%clk 01:21:22]} {[%emt 00:04:42]}
Bb4 {[%clk 01:29:31]} {[%emt 00:00:24]} 6. Qb3 {[%clk 01:19:28]} {[%emt
00:02:24]} Bxc3+ {[%clk 01:29:07]} {[%emt 00:00:54]} 7. Qxc3 {[%clk 01:18:17]}
{[%emt 00:01:41]} d6 {[%clk 01:25:18]} {[%emt 00:04:19]} 8. Qc2 {[%clk
01:07:42]} {[%emt 00:11:05]} O-O {[%clk 01:24:34]} {[%emt 00:01:14]} 9. e3
{[%clk 01:07:29]} {[%emt 00:00:43]} Bb7 {[%clk 01:24:17]} {[%emt 00:00:48]} 10.
h3 {[%clk 01:04:50]} {[%emt 00:03:09]} Nbd7 {[%clk 01:21:27]} {[%emt 00:03:20]}
11. Be2 {[%clk 00:59:09]} {[%emt 00:06:10]} a5 {[%clk 01:18:38]} {[%emt
00:03:19]} 12. O-O {[%clk 00:57:44]} {[%emt 00:01:56]} Ne4 {[%clk 01:18:32]}
{[%emt 00:00:35]} 13. Nd2 {[%clk 00:49:40]} {[%emt 00:08:34]} g5 {[%clk
01:11:51]} {[%emt 00:07:11]} 14. Bh2 {[%clk 00:49:14]} {[%emt 00:00:56]} Nxd2
{[%clk 01:09:39]} {[%emt 00:02:42]} 15. Qxd2 {[%clk 00:49:36]} {[%emt
00:00:08]} Qf6 {[%clk 01:09:54]} {[%emt 00:00:15]} 16. f4 {[%clk 00:38:14]}
{[%emt 00:11:52]} Kh8 {[%clk 01:04:02]} {[%emt 00:06:22]} 17. fxg5 {[%clk
00:33:24]} {[%emt 00:05:20]} Qxg5 {[%clk 01:04:23]} {[%emt 00:00:08]} 18. Bf3
{[%clk 00:33:42]} {[%emt 00:00:13]} Bxf3 {[%clk 01:03:51]} {[%emt 00:01:01]} 19.
Rxf3 {[%clk 00:34:07]} {[%emt 00:00:05]} Nf6 {[%clk 01:01:51]} {[%emt
00:02:29]} 20. Raf1 {[%clk 00:32:11]} {[%emt 00:02:27]} Ne4 {[%clk 01:02:07]}
{[%emt 00:00:14]} 21. Qc2 {[%clk 00:31:53]} {[%emt 00:00:48]} Rf6 {[%clk
00:54:50]} {[%emt 00:07:46]} 22. a3 {[%clk 00:28:13]} {[%emt 00:04:11]} Rg8
{[%clk 00:54:42]} {[%emt 00:00:38]} 23. Kh1 {[%clk 00:26:51]} {[%emt 00:01:52]}
Rfg6 {[%clk 00:53:33]} {[%emt 00:01:38]} 24. Rg1 {[%clk 00:27:06]} {[%emt
00:00:16]} Qh5 {[%clk 00:52:02]} {[%emt 00:02:01]} 25. Qd1 {[%clk 00:24:21]}
{[%emt 00:03:15]} h6 {[%clk 00:35:31]} {[%emt 00:17:01]} 26. b4 {[%clk
00:22:47]} {[%emt 00:02:03]} axb4 {[%clk 00:35:05]} {[%emt 00:00:57]} 27. axb4
{[%clk 00:23:12]} {[%emt 00:00:04]} Ra8 {[%clk 00:33:23]} {[%emt 00:02:12]} 28.
g4 {[%clk 00:19:10]} {[%emt 00:04:33]} fxg4 {[%clk 00:32:13]} {[%emt 00:01:40]}
29. Rf4 {[%clk 00:16:28]} {[%emt 00:03:11]} Ra2 {[%clk 00:30:48]} {[%emt
00:01:55]} 30. Qf1 {[%clk 00:11:36]} {[%emt 00:05:22]} Ng5 {[%clk 00:14:36]}
{[%emt 00:16:42]} 31. Rgxg4 {[%emt 00:02:39]} Rg8 {[%clk 00:12:59]} {[%emt
00:01:19]} 32. Rh4 {[%clk 00:07:29]} {[%emt 00:03:15]} Nf3 {[%clk 00:11:18]}
{[%emt 00:02:11]} 33. Rxf3 {[%clk 00:05:16]} {[%emt 00:02:44]} Qxh4 {[%clk
00:11:37]} {[%emt 00:00:11]} 34. Rf4 {[%clk 00:03:36]} {[%emt 00:02:11]} Qd8
{[%clk 00:11:18]} {[%emt 00:00:49]} 35. Rf7 {[%clk 00:03:40]} {[%emt 00:00:26]}
Qa8+ {[%clk 00:11:10]} {[%emt 00:00:37]} 36. d5 {[%clk 00:03:06]} {[%emt
00:01:05]} Ra1 {[%clk 00:11:29]} {[%emt 00:00:10]} 0-1

[Event "NJSK 2024 A"]
[Site "Groningen, Netherlands"]
[Date "2024.04.28"]
[Round "2.6"]
[White "Ramak, Vince"]
[Black "Blom, Rens"]
[Result "0-1"]
[TimeControl "90min/40moves + 30min + 30sec/move"]
[WhiteElo "1902"]
[BlackElo "1963"]

1. e4 {[%clk 01:30:56]} {[%emt 00:00:03]} d6 {[%clk 01:30:54]} {[%emt
00:00:06]} 2. d4 {[%clk 01:31:22]} {[%emt 00:00:04]} Nf6 {[%clk 01:31:21]}
{[%emt 00:00:04]} 3. Nc3 {[%clk 01:31:47]} {[%emt 00:00:05]} g6 {[%clk
01:31:46]} {[%emt 00:00:05]} 4. Be3 {[%clk 01:32:12]} {[%emt 00:00:05]} Bg7
{[%clk 01:32:11]} {[%emt 00:00:05]} 5. Qd2 {[%clk 01:32:36]} {[%emt 00:00:06]}
O-O {[%clk 01:32:35]} {[%emt 00:00:06]} 6. O-O-O {[%clk 01:33:01]} {[%emt
00:00:04]} c6 {[%clk 01:33:01]} {[%emt 00:00:05]} 7. Bh6 {[%clk 01:33:22]}
{[%emt 00:00:09]} b5 {[%clk 01:33:18]} {[%emt 00:00:13]} 8. f3 {[%clk
01:33:43]} {[%emt 00:00:09]} Qa5 {[%clk 01:33:18]} {[%emt 00:00:30]} 9. h4
{[%clk 01:33:57]} {[%emt 00:00:15]} b4 {[%clk 01:32:01]} {[%emt 00:01:47]} 10.
Nb1 {[%clk 01:34:17]} {[%emt 00:00:10]} Qxa2 {[%clk 01:20:17]} {[%emt
00:12:16]} 11. h5 {[%clk 01:34:05]} {[%emt 00:00:41]} Nbd7 {[%clk 01:13:45]}
{[%emt 00:07:02]} 12. Bxg7 {[%clk 01:34:00]} {[%emt 00:00:34]} Kxg7 {[%clk
01:14:09]} {[%emt 00:00:06]} 13. hxg6 {[%clk 01:34:25]} {[%emt 00:00:05]} fxg6
{[%clk 01:14:28]} {[%emt 00:00:12]} 14. Qh6+ {[%clk 01:34:42]} {[%emt
00:00:13]} Kf7 {[%clk 01:05:55]} {[%emt 00:09:03]} 15. Nh3 {[%clk 01:33:09]}
{[%emt 00:02:02]} Ke8 {[%clk 00:59:11]} {[%emt 00:07:14]} 16. b3 {[%clk
01:30:55]} {[%emt 00:02:43]} a5 {[%clk 00:54:31]} {[%emt 00:05:11]} 17. Ng5
{[%clk 01:20:29]} {[%emt 00:10:56]} a4 {[%clk 00:49:44]} {[%emt 00:05:18]} 18.
bxa4 {[%clk 01:17:31]} {[%emt 00:03:28]} b3 {[%clk 00:41:10]} {[%emt 00:09:04]}
19. cxb3 {[%clk 01:17:29]} {[%emt 00:00:31]} Qxb3 {[%clk 00:41:28]} {[%emt
00:00:12]} 20. Bd3 {[%clk 01:09:24]} {[%emt 00:08:35]} Rb8 {[%clk 00:30:10]}
{[%emt 00:11:49]} 21. Kd2 {[%clk 01:07:08]} {[%emt 00:02:46]} Qb2+ {[%clk
00:29:30]} {[%emt 00:01:10]} 22. Ke3 {[%clk 01:05:17]} {[%emt 00:02:21]} Ng4+
{[%clk 00:29:42]} {[%emt 00:00:19]} 0-1

[Event "NJSK 2024 A"]
[Site "Groningen, Netherlands"]
[Date "2024.04.28"]
[Round "2.7"]
[White "Wiersma, Camiel"]
[Black "Leorato, Imanol"]
[Result "0-1"]
[TimeControl "90min/40moves + 30min + 30sec/move"]
[WhiteElo "1963"]
[BlackElo "1837"]

1. c4 {[%clk 01:30:57]} {[%emt 00:00:03]} e5 {[%clk 01:30:39]} {[%emt
00:00:22]} 2. Nc3 {[%clk 01:31:22]} {[%emt 00:00:05]} Bb4 {[%clk 01:30:40]}
{[%emt 00:00:29]} 3. e4 {[%clk 01:31:45]} {[%emt 00:00:07]} Nf6 {[%clk
01:30:41]} {[%emt 00:00:28]} 4. Bd3 {[%clk 01:32:08]} {[%emt 00:00:06]} c6
{[%clk 01:30:31]} {[%emt 00:00:42]} 5. a3 {[%clk 01:32:33]} {[%emt 00:00:05]}
Be7 {[%clk 01:29:55]} {[%emt 00:01:06]} 6. Nf3 {[%clk 01:31:50]} {[%emt
00:01:13]} Qc7 {[%clk 01:29:47]} {[%emt 00:00:37]} 7. O-O {[%clk 01:31:13]}
{[%emt 00:01:07]} O-O {[%clk 01:29:20]} {[%emt 00:00:57]} 8. b4 {[%clk
01:30:45]} {[%emt 00:00:59]} d6 {[%clk 01:28:41]} {[%emt 00:01:08]} 9. Bb2
{[%clk 01:30:43]} {[%emt 00:00:33]} Bg4 {[%clk 01:28:52]} {[%emt 00:00:18]} 10.
h3 {[%clk 01:27:32]} {[%emt 00:03:42]} Bxf3 {[%clk 01:28:44]} {[%emt 00:00:37]}
11. Qxf3 {[%clk 01:27:53]} {[%emt 00:00:10]} Nbd7 {[%clk 01:28:39]} {[%emt
00:00:34]} 12. Ne2 {[%clk 01:20:46]} {[%emt 00:07:37]} Rfd8 {[%clk 01:27:37]}
{[%emt 00:01:32]} 13. Rfc1 {[%clk 01:16:35]} {[%emt 00:04:41]} Nf8 {[%clk
01:27:37]} {[%emt 00:00:29]} 14. Qe3 {[%clk 01:12:26]} {[%emt 00:04:40]} Rac8
{[%clk 01:25:58]} {[%emt 00:02:09]} 15. f4 {[%clk 01:11:49]} {[%emt 00:01:07]}
Qb8 {[%clk 01:25:37]} {[%emt 00:00:51]} 16. Bb1 {[%clk 01:04:13]} {[%emt
00:08:07]} exf4 {[%clk 01:25:26]} {[%emt 00:00:41]} 17. Nxf4 {[%clk 01:04:19]}
{[%emt 00:00:24]} Ng6 {[%clk 01:25:28]} {[%emt 00:00:27]} 18. Nxg6 {[%clk
01:04:06]} {[%emt 00:00:43]} hxg6 {[%clk 01:25:35]} {[%emt 00:00:24]} 19. d4
{[%clk 01:02:16]} {[%emt 00:02:20]} Nh7 {[%clk 01:23:29]} {[%emt 00:02:35]} 20.
Rf1 {[%clk 01:00:11]} {[%emt 00:02:34]} Bf6 {[%clk 01:21:27]} {[%emt 00:02:33]}
21. Ba2 {[%clk 00:53:50]} {[%emt 00:06:52]} c5 {[%clk 01:19:06]} {[%emt
00:02:50]} 22. Rad1 {[%clk 00:49:54]} {[%emt 00:04:26]} Re8 {[%clk 01:17:23]}
{[%emt 00:02:13]} 23. h4 {[%clk 00:34:44]} {[%emt 00:15:40]} Re7 {[%clk
01:15:47]} {[%emt 00:02:07]} 24. Qf4 {[%clk 00:26:57]} {[%emt 00:08:17]} b6
{[%clk 01:02:48]} {[%emt 00:13:29]} 25. Ba1 {[%clk 00:20:26]} {[%emt 00:07:01]}
Rce8 {[%clk 01:01:30]} {[%emt 00:01:47]} 26. Rfe1 {[%clk 00:18:34]} {[%emt
00:02:23]} g5 {[%clk 01:01:00]} {[%emt 00:00:59]} 27. hxg5 {[%clk 00:18:28]}
{[%emt 00:00:35]} Nxg5 {[%clk 01:01:07]} {[%emt 00:00:24]} 28. dxc5 {[%clk
00:10:48]} {[%emt 00:08:11]} dxc5 {[%clk 00:59:42]} {[%emt 00:01:54]} 29. Qxb8
{[%clk 00:10:55]} {[%emt 00:00:22]} Rxb8 {[%clk 00:59:59]} {[%emt 00:00:13]} 30.
e5 {[%clk 00:09:14]} {[%emt 00:02:12]} Rbe8 {[%clk 01:00:13]} {[%emt 00:00:17]}
31. Rd5 {[%clk 00:07:16]} {[%emt 00:02:27]} cxb4 {[%clk 00:57:55]} {[%emt
00:02:48]} 32. axb4 {[%clk 00:07:44]} {[%emt 00:00:02]} Rc7 {[%clk 00:57:43]}
{[%emt 00:00:41]} 33. Bc3 {[%clk 00:05:11]} {[%emt 00:03:04]} Be7 {[%clk
00:57:48]} {[%emt 00:00:26]} 34. Kf2 {[%clk 00:04:57]} {[%emt 00:00:43]} Rd8
{[%clk 00:57:12]} {[%emt 00:01:06]} 35. Re3 {[%clk 00:04:33]} {[%emt 00:00:53]}
Rxd5 {[%clk 00:57:27]} {[%emt 00:00:15]} 36. cxd5 {[%clk 00:04:57]} {[%emt
00:00:07]} Rxc3 {[%clk 00:57:53]} {[%emt 00:00:05]} 37. Rxc3 {[%clk 00:03:19]}
{[%emt 00:02:07]} Ne4+ {[%clk 00:58:15]} {[%emt 00:00:07]} 38. Ke3 {[%clk
00:03:41]} {[%emt 00:00:08]} Nxc3 {[%clk 00:58:39]} {[%emt 00:00:06]} 39. d6
{[%clk 00:04:01]} {[%emt 00:00:10]} Bg5+ {[%clk 00:58:58]} {[%emt 00:00:11]} 40.
Kd4 {[%clk 00:03:35]} {[%emt 00:00:56]} Nxa2 {[%clk 00:59:21]} {[%emt
00:00:08]} 41. b5 {[%clk 00:03:57]} {[%emt 00:00:08]} Kf8 {[%clk 00:59:29]}
{[%emt 00:00:21]} 42. Kd5 {[%clk 00:04:18]} {[%emt 00:00:10]} Ke8 {[%clk
00:59:42]} {[%emt 00:00:17]} 43. Kc6 {[%clk 00:04:43]} {[%emt 00:00:05]} Kd8
{[%clk 01:00:00]} {[%emt 00:00:11]} 44. Kb7 {[%clk 00:05:07]} {[%emt 00:00:07]}
Nc3 {[%clk 01:00:24]} {[%emt 00:00:05]} 45. Kxa7 {[%clk 00:05:21]} {[%emt
00:00:16]} Nxb5+ {[%clk 01:00:47]} {[%emt 00:00:08]} 46. Kxb6 {[%clk 00:05:47]}
{[%emt 00:00:04]} Nd4 {[%clk 01:00:44]} {[%emt 00:00:33]} 47. Kc5 {[%clk
00:06:09]} {[%emt 00:00:08]} Ne6+ {[%clk 01:01:09]} {[%emt 00:00:05]} 48. Kc4
{[%clk 00:06:33]} {[%emt 00:00:06]} Bf4 {[%clk 01:01:33]} {[%emt 00:00:06]} 49.
Kd5 {[%clk 00:07:00]} {[%emt 00:00:02]} Kd7 {[%clk 01:01:55]} {[%emt 00:00:08]}
50. Ke4 {[%clk 00:07:17]} {[%emt 00:00:13]} g5 {[%clk 01:02:15]} {[%emt
00:00:10]} 51. Kf5 {[%clk 00:07:28]} {[%emt 00:00:20]} Kc6 {[%clk 01:01:56]}
{[%emt 00:00:48]} 52. Ke4 {[%clk 00:06:27]} {[%emt 00:01:32]} Kc5 {[%clk
01:02:12]} {[%emt 00:00:14]} 53. g4 {[%clk 00:06:21]} {[%emt 00:00:36]} Kc4
{[%clk 01:02:32]} {[%emt 00:00:11]} 54. d7 {[%clk 00:06:30]} {[%emt 00:00:20]}
Kc5 {[%clk 01:02:53]} {[%emt 00:00:08]} 55. Kf5 {[%clk 00:06:51]} {[%emt
00:00:09]} Kd5 {[%clk 01:03:00]} {[%emt 00:00:24]} 56. Kf6 {[%clk 00:05:24]}
{[%emt 00:01:57]} Bxe5+ {[%clk 01:03:20]} {[%emt 00:00:09]} 57. Kf5 {[%clk
00:05:51]} {[%emt 00:00:04]} Bf4 {[%clk 01:03:31]} {[%emt 00:00:19]} 58. Kf6
{[%clk 00:05:24]} {[%emt 00:00:56]} Kd6 {[%clk 01:03:51]} {[%emt 00:00:10]} 59.
Kxf7 {[%clk 00:05:40]} {[%emt 00:00:14]} Kxd7 {[%clk 01:04:12]} {[%emt
00:00:10]} 60. Kg6 {[%clk 00:06:06]} {[%emt 00:00:04]} Nc7 {[%clk 01:04:25]}
{[%emt 00:00:16]} 61. Kf5 {[%clk 00:06:28]} {[%emt 00:00:09]} Nd5 {[%clk
01:04:48]} {[%emt 00:00:07]} 62. Ke4 {[%clk 00:06:50]} {[%emt 00:00:08]} Ne3
{[%clk 01:05:07]} {[%emt 00:00:11]} 63. Kf3 {[%clk 00:07:13]} {[%emt 00:00:07]}
Ke6 {[%clk 01:05:28]} {[%emt 00:00:09]} 0-1

[Event "NJSK 2024 A"]
[Site "Groningen, Netherlands"]
[Date "2024.04.29"]
[Round "3.1"]
[White "Labruyere, Roger"]
[Black "Slagboom, Leandro"]
[Result "0-1"]
[TimeControl "90min/40moves + 30min + 30sec/move"]
[WhiteElo "2267"]
[BlackElo "2326"]

1. e4 {[%clk 01:30:58]} e5 {[%clk 01:30:52]} {[%emt 00:00:08]} 2. Nf3 {[%clk
01:29:28]} {[%emt 00:02:00]} Nc6 {[%clk 01:31:14]} {[%emt 00:00:08]} 3. Bc4
{[%clk 01:29:56]} {[%emt 00:00:03]} Nf6 {[%clk 01:31:37]} {[%emt 00:00:07]} 4.
d3 {[%clk 01:30:21]} {[%emt 00:00:05]} Be7 {[%clk 01:32:00]} {[%emt 00:00:06]}
5. O-O {[%clk 01:30:32]} {[%emt 00:00:20]} O-O {[%clk 01:32:11]} {[%emt
00:00:19]} 6. a4 {[%clk 01:30:40]} {[%emt 00:00:23]} d5 {[%clk 01:31:30]}
{[%emt 00:01:10]} 7. exd5 {[%clk 01:30:41]} {[%emt 00:00:29]} Nxd5 {[%clk
01:31:54]} {[%emt 00:00:06]} 8. h3 {[%clk 01:28:04]} {[%emt 00:03:06]} Kh8
{[%clk 01:19:59]} {[%emt 00:12:25]} 9. Re1 {[%clk 01:25:39]} {[%emt 00:02:55]}
f6 {[%clk 01:19:23]} {[%emt 00:01:06]} 10. c3 {[%clk 01:23:36]} {[%emt
00:02:34]} a5 {[%clk 01:14:18]} {[%emt 00:05:35]} 11. Na3 {[%clk 01:23:34]}
{[%emt 00:00:31]} Nb6 {[%clk 01:03:45]} {[%emt 00:11:03]} 12. Bb3 {[%clk
01:23:27]} {[%emt 00:00:37]} Bf5 {[%clk 01:02:35]} {[%emt 00:01:41]} 13. Nb5
{[%clk 01:17:40]} {[%emt 00:06:16]} Qxd3 {[%clk 00:54:21]} 14. Nxc7 {[%clk
01:09:31]} {[%emt 00:17:23]} Rac8 {[%clk 00:52:13]} {[%emt 00:02:37]} 15. Ne6
{[%clk 00:59:00]} {[%emt 00:11:02]} Rfe8 {[%clk 00:48:46]} {[%emt 00:03:56]} 16.
Nh4 {[%clk 00:56:19]} {[%emt 00:03:11]} Qxd1 {[%clk 00:42:50]} {[%emt
00:06:26]} 17. Rxd1 {[%clk 00:56:44]} {[%emt 00:00:06]} Bxe6 {[%clk 00:43:03]}
{[%emt 00:00:17]} 18. Bxe6 {[%clk 00:57:09]} {[%emt 00:00:04]} Rcd8 {[%clk
00:43:24]} {[%emt 00:00:10]} 19. Be3 {[%clk 00:56:41]} {[%emt 00:00:58]} Rxd1+
{[%clk 00:41:35]} {[%emt 00:02:19]} 20. Rxd1 {[%clk 00:57:10]} {[%emt
00:00:01]} Nxa4 {[%clk 00:41:55]} {[%emt 00:00:09]} 21. Rd7 {[%clk 00:35:01]}
{[%emt 00:22:39]} Bf8 {[%clk 00:19:55]} {[%emt 00:22:30]} 22. Bb3 {[%clk
00:28:21]} {[%emt 00:07:10]} Nxb2 {[%clk 00:18:48]} {[%emt 00:01:38]} 23. Bc1
{[%clk 00:23:18]} {[%emt 00:05:32]} a4 {[%clk 00:17:22]} {[%emt 00:01:56]} 24.
Ba2 {[%clk 00:14:18]} {[%emt 00:09:31]} a3 {[%clk 00:16:49]} {[%emt 00:01:02]}
25. Bxb2 {[%clk 00:11:02]} {[%emt 00:03:45]} axb2 {[%clk 00:17:13]} {[%emt
00:00:07]} 26. Rxb7 {[%clk 00:11:30]} {[%emt 00:00:02]} Nb4 {[%clk 00:11:43]}
{[%emt 00:06:00]} 27. Bb1 {[%clk 00:10:43]} {[%emt 00:01:17]} Rc8 {[%clk
00:07:11]} {[%emt 00:05:03]} 28. Rd7 {[%clk 00:00:42]} {[%emt 00:10:30]} Rxc3
{[%clk 00:06:39]} {[%emt 00:01:02]} 29. Rd1 {[%clk 00:00:50]} {[%emt 00:00:22]}
Rc1 {[%clk 00:05:26]} {[%emt 00:01:43]} 30. Rf1 {[%clk 00:01:19]} Nd5 {[%clk
00:05:01]} {[%emt 00:00:55]} 31. Nf3 {[%clk 00:01:40]} {[%emt 00:00:09]} Nc3
{[%clk 00:04:08]} {[%emt 00:01:24]} 32. Nd2 {[%clk 00:02:09]} g6 {[%clk
00:03:07]} {[%emt 00:01:31]} 33. g4 {[%clk 00:01:37]} {[%emt 00:01:01]} Bh6
{[%clk 00:03:20]} {[%emt 00:00:17]} 0-1